fUST/lending_fUST_20250507
["ID","MTS","AMOUNT","RATE_DAILY","PERIOD"]
[360130229,1746561045155,-400.0,0.00019178,2]
[360130230,1746561045165,-400.0,0.00019178,2]
[360130231,1746561045174,-400.0,0.00019178,2]
[360130232,1746561045183,-600.58,0.00019178,2]
[360130233,1746561045194,-400.0,0.00019178,2]
[360130234,1746561045203,-400.0,0.00019178,2]
[360130235,1746561045212,-207.81361761,0.00019178,2]
[360130236,1746561045222,-400.0,0.00019178,2]
[360130237,1746561045231,-360.81304676,0.00019178,2]
[360130238,1746561045240,-608.14,0.00019178,2]
[360130239,1746561045250,-659.74,0.00019178,2]
[360130240,1746561045259,-400.0,0.00019178,2]
[360130241,1746561045269,-400.0,0.00019178,2]
[360130242,1746561045278,-409.92,0.00019178,2]
[360130243,1746561045288,-400.0,0.00019178,2]
[360130244,1746561045297,-1234.29,0.00019178,2]
[360130245,1746561045306,-405.32755235,0.00019178,2]
[360130246,1746561045316,-401.67160681,0.00019178,2]
[360130247,1746561045325,-2599.11,0.00019178,2]
[360130248,1746561045335,-400.0,0.00019178,2]
[360130249,1746561045345,-400.0,0.00019178,2]
[360130250,1746561045354,-753.36,0.00019178,2]
[360130251,1746561045365,-400.0,0.00019178,2]
[360130252,1746561045374,-400.0,0.00019178,2]
[360130253,1746561045384,-455.15,0.00019178,2]
[360130254,1746561045394,-408.62378726,0.00019178,2]
[360130255,1746561045404,-671.0,0.00019178,2]
[360130256,1746561045413,-1168.25,0.00019178,2]
[360130258,1746561045422,-1762.42,0.00019178,2]
[360130260,1746561045431,-400.0,0.00019178,2]
[360130261,1746561045440,-186.25005525,0.00019178,2]
[360130264,1746561045450,-1395.58,0.00019178,2]
[360130265,1746561045462,-401.58873496,0.00019178,2]
[360130266,1746561045471,-778.7,0.00019178,2]
[360130267,1746561045480,-404.56256714,0.00019178,2]
[360130268,1746561045491,-400.0,0.00019178,2]
[360130269,1746561045500,-431.81714596,0.00019178,2]
[360130270,1746561045510,-2110.51,0.00019178,2]
[360130271,1746561045519,-400.0,0.00019178,2]
[360130272,1746561045534,-400.0,0.00019178,2]
[360130273,1746561045543,-400.0,0.00019178,2]
[360130274,1746561045553,-452.1,0.00019178,2]
[360130275,1746561045562,-400.0,0.00019178,2]
[360130276,1746561045572,-860.33,0.00019178,2]
[360130277,1746561045582,-664.08,0.00019178,2]
[360130278,1746561045591,-202.21434323,0.00019178,2]
[360130279,1746561045603,-400.0,0.00019178,2]
[360130280,1746561045612,-3903.25,0.00019178,2]
[360130281,1746561045621,-409.61226827,0.00019178,2]
[360130283,1746561045631,-657.42,0.00019178,2]
[360130285,1746561045640,-400.0,0.00019178,2]
[360130287,1746561045651,-407.98455808,0.00019178,2]
[360130289,1746561045662,-402.91911364,0.00019178,2]
[360130291,1746561045671,-400.0,0.00019178,2]
[360130293,1746561045680,-524.85,0.00019178,2]
[360130295,1746561045689,-400.0,0.00019178,2]
[360130297,1746561045699,-400.0,0.00019178,2]
[360130299,1746561045709,-400.0,0.00019178,2]
[360130301,1746561045718,-305.52403682,0.00019178,2]
[360130303,1746561045727,-400.0,0.00019178,2]
[360130305,1746561045736,-500.0,0.00019178,2]
[360130307,1746561045745,-500.0,0.00019178,2]
[360130309,1746561045755,-500.0,0.00019178,2]
[360130310,1746561045764,-500.0,0.00019178,2]
[360130312,1746561045773,-500.0,0.00019178,2]
[360130314,1746561045782,-500.0,0.00019178,2]
[360130316,1746561045792,-500.0,0.00019178,2]
[360130318,1746561045801,-500.0,0.00019178,2]
[360130332,1746561045908,-500.0,0.00019178,2]
[360130335,1746561045928,-500.0,0.00019178,2]
[360130337,1746561045938,-500.0,0.00019178,2]
[360130339,1746561045947,-500.0,0.00019178,2]
[360130341,1746561045957,-500.0,0.00019178,2]
[360130343,1746561045966,-500.0,0.00019178,2]
[360130345,1746561045975,-500.0,0.00019178,2]
[360130347,1746561045985,-500.0,0.00019178,2]
[360130349,1746561045994,-500.0,0.00019178,2]
[360130351,1746561046003,-274.11657521,0.00019178,2]
[360130353,1746561046013,-3687.73,0.00019178,2]
[360130355,1746561046022,-500.0,0.00019178,2]
[360130357,1746561046031,-500.0,0.00019178,2]
[360130359,1746561046040,-500.0,0.00019178,2]
[360130361,1746561046049,-500.0,0.00019178,2]
[360130362,1746561046058,-500.0,0.00019178,2]
[360130364,1746561046067,-714.22,0.00019178,2]
[360130366,1746561046076,-400.0,0.00019178,2]
[360130368,1746561046085,-1815.93,0.00019178,2]
[360130370,1746561046095,-398.90214439,0.00019178,2]
[360130372,1746561046104,-400.0,0.00019178,2]
[360130374,1746561046113,-537.46,0.00019178,2]
[360130376,1746561046123,-400.0,0.00019178,2]
[360130378,1746561046132,-460.40549829,0.00019178,2]
[360130380,1746561046141,-400.0,0.00019178,2]
[360130382,1746561046151,-400.0,0.00019178,2]
[360130384,1746561046161,-400.0,0.00019178,2]
[360130387,1746561046171,-402.9905216,0.00019178,2]
[360130389,1746561046180,-400.0,0.00019178,2]
[360130391,1746561046190,-400.0,0.00019178,2]
[360130393,1746561046199,-400.0,0.00019178,2]
[360130395,1746561046208,-400.0,0.00019178,2]
[360130397,1746561046217,-400.0,0.00019178,2]
[360130399,1746561046226,-781.9,0.00019178,2]
[360130401,1746561046236,-509.9,0.00019178,2]
[360130403,1746561046246,-856.0,0.00019178,2]
[360130405,1746561046256,-856.0,0.00019178,2]
[360130406,1746561046266,-856.0,0.00019178,2]
[360130409,1746561046277,-856.0,0.00019178,2]
[360130411,1746561046286,-856.0,0.00019178,2]
[360130413,1746561046296,-856.0,0.00019178,2]
[360130415,1746561046305,-856.0,0.00019178,2]
[360130416,1746561046314,-856.0,0.00019178,2]
[360130418,1746561046323,-2021.67,0.00019178,2]
[360130420,1746561046333,-856.0,0.00019178,2]
[360130422,1746561046343,-400.0,0.00019178,2]
[360130424,1746561046353,-400.0,0.00019178,2]
[360130427,1746561046365,-856.0,0.00019178,2]
[360130429,1746561046374,-856.0,0.00019178,2]
[360130431,1746561046383,-856.0,0.00019178,2]
[360130433,1746561046394,-856.0,0.00019178,2]
[360130435,1746561046405,-856.0,0.00019178,2]
[360130437,1746561046415,-856.0,0.00019178,2]
[360130439,1746561046424,-856.0,0.00019178,2]
[360130441,1746561046433,-856.0,0.00019178,2]
[360130443,1746561046443,-856.0,0.00019178,2]
[360130445,1746561046453,-856.0,0.00019178,2]
[360130447,1746561046462,-856.0,0.00019178,2]
[360130449,1746561046471,-400.0,0.00019178,2]
[360130451,1746561046481,-856.0,0.00019178,2]
[360130453,1746561046490,-856.0,0.00019178,2]
[360130455,1746561046499,-856.0,0.00019178,2]
[360130457,1746561046509,-400.0,0.00019178,2]
[360130459,1746561046518,-856.07327311,0.00019178,2]
[360130461,1746561046527,-400.0,0.00019178,2]
[360130463,1746561046540,-400.0,0.00019178,2]
[360130465,1746561046549,-401.2,0.00019178,2]
[360130467,1746561046558,-406.13,0.00019178,2]
[360130469,1746561046568,-400.0,0.00019178,2]
[360130471,1746561046578,-400.0,0.00019178,2]
[360130473,1746561046587,-2332.11,0.00019178,2]
[360130475,1746561046596,-400.0,0.00019178,2]
[360130477,1746561046606,-400.0,0.00019178,2]
[360130479,1746561046620,-400.0,0.00019178,2]
[360130481,1746561046630,-206.0059834,0.00019178,2]
[360130483,1746561046639,-400.0,0.00019178,2]
[360130485,1746561046650,-19331.77,0.00019178,2]
[360130487,1746561046659,-400.0,0.00019178,2]
[360130489,1746561046668,-400.0,0.00019178,2]
[360130491,1746561046677,-400.0,0.00019178,2]
[360130493,1746561046687,-513.7459558,0.00019178,2]
[360130495,1746561046696,-400.0,0.00019178,2]
[360130497,1746561046705,-505.17156563,0.00019178,2]
[360130499,1746561046715,-400.0,0.00019178,2]
[360130501,1746561046724,-283.18379737,0.00019178,2]
[360130503,1746561046734,-400.0,0.00019178,2]
[360130505,1746561046743,-231.50128477,0.00019178,2]
[360130507,1746561046752,-403.14127598,0.00019178,2]
[360130509,1746561046762,-400.0,0.00019178,2]
[360130511,1746561046771,-400.0,0.00019178,2]
[360130513,1746561046780,-504.99595822,0.00019178,2]
[360130515,1746561046789,-203.49669118,0.00019178,2]
[360130517,1746561046799,-400.0,0.00019178,2]
[360130519,1746561046808,-508.39,0.00019178,2]
[360130521,1746561046818,-400.0,0.00019178,2]
[360130523,1746561046828,-400.0,0.00019178,2]
[360130525,1746561046837,-400.0,0.00019178,2]
[360130527,1746561046847,-773.09,0.00019178,2]
[360130529,1746561046856,-400.0,0.00019178,2]
[360130531,1746561046866,-400.0,0.00019178,2]
[360130533,1746561046875,-8706.78,0.00019178,2]
[360130535,1746561046885,-400.0,0.00019178,2]
[360130537,1746561046894,-1311.27,0.00019178,2]
[360130539,1746561046904,-2425.66,0.00019178,2]
[360130541,1746561046913,-400.0,0.00019178,2]
[360130543,1746561046922,-7220.36,0.00019178,2]
[360130545,1746561046932,-400.0,0.00019178,2]
[360130547,1746561046942,-400.0,0.00019178,2]
[360130549,1746561046951,-424.05806894,0.00019178,2]
[360130551,1746561046961,-400.0,0.00019178,2]
[360130553,1746561046970,-400.0,0.00019178,2]
[360130555,1746561046979,-400.0,0.00019178,2]
[360130557,1746561046990,-1354.8,0.00019178,2]
[360130559,1746561046999,-1051.63,0.00019178,2]
[360130561,1746561047009,-442.77,0.00019178,2]
[360130563,1746561047018,-500.0,0.00019178,2]
[360130565,1746561047027,-1481.29,0.00019178,2]
[360130567,1746561047037,-400.0,0.00019178,2]
[360130569,1746561047046,-2601.84,0.00019178,2]
[360130571,1746561047056,-2466.48,0.00019178,2]
[360130573,1746561047065,-1036.19,0.00019178,2]
[360130575,1746561047076,-400.0,0.00019178,2]
[360130577,1746561047085,-427.54,0.00019178,2]
[360130579,1746561047095,-1499.83,0.00019178,2]
[360130581,1746561047105,-400.0,0.00019178,2]
[360130583,1746561047114,-403.34010556,0.00019178,2]
[360130585,1746561047124,-400.0,0.00019178,2]
[360130587,1746561047133,-640.19,0.00019178,2]
[360130589,1746561047143,-400.0,0.00019178,2]
[360130591,1746561047153,-400.0,0.00019178,2]
[360130593,1746561047163,-8678.79,0.00019178,2]
[360130595,1746561047173,-402.10659483,0.00019178,2]
[360130597,1746561047182,-1377.75,0.00019178,2]
[360130599,1746561047192,-400.0,0.00019178,2]
[360130602,1746561047203,-400.0,0.00019178,2]
[360130604,1746561047212,-400.0,0.00019178,2]
[360130606,1746561047221,-400.0,0.00019178,2]
[360130608,1746561047231,-400.0,0.00019178,2]
[360130610,1746561047241,-400.0,0.00019178,2]
[360130612,1746561047251,-400.0,0.00019178,2]
[360130614,1746561047261,-400.0,0.00019178,2]
[360130616,1746561047270,-400.0,0.00019178,2]
[360130618,1746561047280,-589.36,0.00019178,2]
[360130620,1746561047291,-400.0,0.00019178,2]
[360130622,1746561047300,-502.8703402,0.00019178,2]
[360130623,1746561047309,-400.0,0.00019178,2]
[360130625,1746561047319,-365.92022932,0.00019178,2]
[360130627,1746561047328,-400.0,0.00019178,2]
[360130629,1746561047337,-406.79252526,0.00019178,2]
[360130632,1746561047347,-3041.56,0.00019178,2]
[360130633,1746561047357,-400.0,0.00019178,2]
[360130636,1746561047368,-400.0,0.00019178,2]
[360130638,1746561047378,-400.0,0.00019178,2]
[360130640,1746561047387,-400.0,0.00019178,2]
[360130642,1746561047398,-400.0,0.00019178,2]
[360130644,1746561047406,-669.47,0.00019178,2]
[360130646,1746561047416,-3107.34,0.00019178,2]
[360130648,1746561047426,-400.0,0.00019178,2]
[360130650,1746561047435,-151.0,0.00019178,2]
[360130651,1746561047444,-787.397966,0.00019178,2]
[360130653,1746561047454,-300.0,0.00019178,2]
[360130655,1746561047463,-151.0,0.000192,2]
[360130657,1746561047474,-156.587,0.00019233,2]
[360130659,1746561047483,-160.0,0.00019281,2]
[360130661,1746561047492,-160.0,0.00019281,2]
[360130663,1746561047501,-160.0,0.00019281,2]
[360130665,1746561047510,-160.0,0.00019281,2]
[360130667,1746561047519,-313.9004746,0.00019281,2]
[360130669,1746561047530,-160.0,0.00019281,2]
[360130671,1746561047542,-162.380719,0.00019288,2]
[360130673,1746561047551,-151.0,0.000193,2]
[360130675,1746561047561,-151.0,0.00019328,2]
[360130677,1746561047571,-12610.21250885,0.00019329,3]
[360130679,1746561047582,-313.9004746,0.00019329,3]
[360130681,1746561047592,-212.03916285,0.00019329,3]
[360130683,1746561047603,-841.96455721,0.00019329,3]
[360130686,1746561047616,-160.0,0.00019329,3]
[360130688,1746561047626,-151.0,0.00019329,2]
[360130690,1746561047636,-1783.423992,0.00019329,2]
[360130691,1746561047645,-1783.423992,0.00019329,2]
[360130693,1746561047654,-151.0,0.00019329,2]
[360130706,1746561047767,-281.695694,0.00019329,2]
[360130709,1746561047777,-151.0,0.00019329,2]
[360130711,1746561047787,-281.695694,0.00019329,2]
[360130713,1746561047797,-153.140766,0.00019329,2]
[360130714,1746561047806,-151.0,0.00019329,2]
[360130717,1746561047816,-151.0,0.00019329,2]
[360130719,1746561047826,-227.75999,0.00019329,2]
[360130721,1746561047835,-227.75999,0.00019329,2]
[360130723,1746561047845,-151.0,0.00019329,2]
[360130725,1746561047854,-151.0,0.00019329,2]
[360130727,1746561047864,-151.0,0.00019329,2]
[360130729,1746561047874,-151.0,0.00019329,2]
[360130731,1746561047884,-151.0,0.00019329,2]
[360130733,1746561047894,-151.0,0.00019329,2]
[360130735,1746561047903,-371.027915,0.00019329,2]
[360130737,1746561047913,-371.027915,0.00019329,2]
[360130739,1746561047923,-56388.12851072,0.00019329,2]
[360130749,1746561048004,-400.0,0.00019178,2]
[360130751,1746561048013,-247.97717085,0.00019329,2]
[360130880,1746561049431,-309.74,0.00019178,2]
[360131512,1746562231999,-171.64579222,0.0001658,2]
[360131514,1746562232010,-178.3534263,0.00017898,2]
[360131517,1746562232019,-178.3534263,0.00017914,2]
[360131519,1746562232029,-43.13435518,0.0001793,2]
[360131569,1746562238009,-135.21907112,0.0001793,2]
[360131571,1746562238019,-2493.54391274,0.00017973,2]
[360131573,1746562238029,-2493.5439127,0.00017998,2]
[360131575,1746562238039,-2493.5439127,0.00018023,2]
[360131576,1746562238047,-300.0,0.00018028,2]
[360131578,1746562238057,-300.0,0.00018029,2]
[360131580,1746562238066,-1200.0,0.00018029,2]
[360131582,1746562238078,-315.66278056,0.0001803,2]
[360131584,1746562238088,-500.0,0.0001803,2]
[360131586,1746562238097,-500.0,0.0001803,2]
[360131588,1746562238107,-480.0,0.0001803,2]
[360131590,1746562238118,-151.0,0.00018031,2]
[360131592,1746562238127,-980.51,0.00018031,3]
[360131594,1746562238137,-490.26,0.00018031,3]
[360131596,1746562238146,-245.13,0.00018031,3]
[360131597,1746562238157,-735.4,0.00018031,3]
[360131598,1746562238166,-370000.0,0.00018041,2]
[360131599,1746562238175,-2493.5439127,0.00018048,2]
[360131600,1746562238184,-500.0,0.00018073,2]
[360131601,1746562238193,-500.0,0.00018073,2]
[360131602,1746562238202,-340.44994791,0.00018073,2]
[360131603,1746562238211,-500.0,0.00018073,2]
[360131604,1746562238221,-400.08867886,0.00018073,2]
[360131605,1746562238230,-500.0,0.00018073,2]
[360131606,1746562238240,-500.0,0.00018073,2]
[360131607,1746562238249,-500.0,0.00018073,2]
[360131608,1746562238259,-500.0,0.00018073,2]
[360131609,1746562238268,-500.0,0.00018073,2]
[360131610,1746562238277,-500.0,0.00018073,2]
[360131611,1746562238286,-500.0,0.00018073,2]
[360131612,1746562238295,-421.85758914,0.00018073,2]
[360131613,1746562238304,-500.0,0.00018073,2]
[360131614,1746562238313,-504.34210829,0.00018073,2]
[360131615,1746562238322,-500.0,0.00018073,2]
[360131616,1746562238331,-500.0,0.00018073,2]
[360131617,1746562238340,-500.0,0.00018073,2]
[360131618,1746562238349,-500.0,0.00018073,2]
[360131619,1746562238358,-2493.5439127,0.00018073,2]
[360131620,1746562238367,-151.0,0.000181,2]
[360131621,1746562238376,-151.0,0.000181,2]
[360131622,1746562238385,-151.0,0.000181,2]
[360131623,1746562238395,-151.0,0.000181,2]
[360131625,1746562238405,-151.0,0.000181,2]
[360131627,1746562238415,-151.0,0.000181,2]
[360131630,1746562238425,-151.0,0.000181,2]
[360131632,1746562238435,-152.0,0.00018101,2]
[360131634,1746562238444,-151.0,0.0001813,2]
[360131636,1746562238454,-500.0,0.0001813,2]
[360131638,1746562238462,-1008.1329008,0.0001814,2]
[360131639,1746562238472,-172.143437,0.00018141,2]
[360131641,1746562238481,-1413011.12,0.00018141,2]
[360131643,1746562238491,-500.0,0.00018173,2]
[360131645,1746562238501,-500.0,0.00018173,2]
[360131647,1746562238510,-500.0,0.00018173,2]
[360131664,1746562238634,-500.0,0.00018173,2]
[360131667,1746562238674,-615.15714797,0.00018173,2]
[360131669,1746562238684,-500.0,0.00018173,2]
[360131671,1746562238693,-500.0,0.00018173,2]
[360131673,1746562238702,-555.09163379,0.00018173,2]
[360131675,1746562238712,-500.0,0.00018173,2]
[360131677,1746562238721,-623.87666749,0.00018173,2]
[360131679,1746562238731,-500.0,0.00018173,2]
[360131681,1746562238740,-500.0,0.00018173,2]
[360131683,1746562238750,-513.10292408,0.00018173,2]
[360131685,1746562238759,-500.0,0.00018173,2]
[360131687,1746562238769,-500.0,0.00018173,2]
[360131689,1746562238778,-500.0,0.00018173,2]
[360131691,1746562238787,-500.0,0.00018173,2]
[360131693,1746562238797,-500.0,0.00018173,2]
[360131695,1746562238806,-500.34287887,0.00018173,2]
[360131697,1746562238815,-445.44522005,0.00018173,2]
[360131699,1746562238824,-500.22940159,0.00018173,2]
[360131701,1746562238833,-500.0,0.00018173,2]
[360131703,1746562238842,-151.94334312,0.00018173,2]
[360131705,1746562238852,-500.0,0.00018173,2]
[360131707,1746562238861,-500.0,0.00018173,2]
[360131709,1746562238870,-500.0,0.00018173,2]
[360131711,1746562238879,-500.0,0.00018173,2]
[360131713,1746562238888,-165.91508587,0.00018173,2]
[360131715,1746562238897,-505.99404103,0.00018173,2]
[360131717,1746562238907,-519.60099838,0.00018173,2]
[360131719,1746562238916,-500.0,0.00018173,2]
[360131721,1746562238925,-500.0,0.00018173,2]
[360131723,1746562238934,-500.55364994,0.00018173,2]
[360131725,1746562238945,-500.0,0.00018173,2]
[360131727,1746562238954,-500.34358694,0.00018173,2]
[360131729,1746562238963,-500.0,0.00018173,2]
[360131731,1746562238972,-502.00234253,0.00018173,2]
[360131733,1746562238981,-500.0,0.00018173,2]
[360131735,1746562238990,-500.0,0.00018173,2]
[360131737,1746562238999,-500.0,0.00018173,2]
[360131739,1746562239009,-500.0,0.00018173,2]
[360131741,1746562239018,-500.0,0.00018173,2]
[360131743,1746562239026,-500.0,0.00018173,2]
[360131745,1746562239036,-500.0,0.00018173,2]
[360131748,1746562239045,-500.0,0.00018173,2]
[360131750,1746562239054,-500.0,0.00018173,2]
[360131751,1746562239063,-521.35594741,0.00018173,2]
[360131753,1746562239073,-614.13335501,0.00018326,2]
[360131756,1746562239086,-614.13335501,0.00018386,2]
[360131758,1746562239095,-500.0,0.00018493,2]
[360131760,1746562239105,-192.0,0.00018508,2]
[360131762,1746562239114,-155.0,0.00018517,2]
[360131764,1746562239125,-317.85387529,0.00018517,2]
[360131766,1746562239134,-614.13335501,0.00018654,2]
[360131768,1746562239143,-4023.62942965,0.00018749,2]
[360131770,1746562239154,-1594.82145515,0.000189,2]
[360131772,1746562239164,-200.08340995,0.000189,2]
[360131774,1746562239174,-193.0,0.00018925,2]
[360131776,1746562239184,-317.0,0.00019,2]
[360131778,1746562239193,-200.0,0.00019011,4]
[360131780,1746562239202,-998.20323418,0.00019069,2]
[360131782,1746562239212,-614.13335502,0.0001909,2]
[360131784,1746562239221,-30251.65,0.0001917,2]
[360131786,1746562239231,-500.0,0.00019173,2]
[360131788,1746562239240,-500.0,0.00019173,2]
[360131790,1746562239250,-500.0,0.00019173,2]
[360131792,1746562239259,-500.0,0.00019173,2]
[360131794,1746562239269,-500.0,0.00019173,2]
[360131796,1746562239278,-500.0,0.00019173,2]
[360131798,1746562239287,-500.0,0.00019173,2]
[360131800,1746562239296,-500.0,0.00019173,2]
[360131802,1746562239305,-400.0,0.00019178,2]
[360131804,1746562239314,-400.0,0.00019178,2]
[360131806,1746562239324,-401.33723472,0.00019178,2]
[360131808,1746562239334,-1198.26,0.00019178,2]
[360131810,1746562239343,-157.35116353,0.00019178,2]
[360131813,1746562239352,-400.0,0.00019178,2]
[360131815,1746562239362,-400.0,0.00019178,2]
[360131817,1746562239371,-400.0,0.00019178,2]
[360131819,1746562239381,-400.0,0.00019178,2]
[360131821,1746562239390,-400.0,0.00019178,2]
[360131823,1746562239400,-400.0,0.00019178,2]
[360131824,1746562239409,-400.0,0.00019178,2]
[360131827,1746562239419,-400.0,0.00019178,2]
[360131829,1746562239429,-400.0,0.00019178,2]
[360131831,1746562239438,-400.0,0.00019178,2]
[360131833,1746562239447,-400.0,0.00019178,2]
[360131835,1746562239457,-400.0,0.00019178,2]
[360131837,1746562239466,-400.0,0.00019178,2]
[360131839,1746562239475,-400.0,0.00019178,2]
[360131841,1746562239485,-307.91332687,0.00019178,2]
[360131844,1746562239494,-400.0,0.00019178,2]
[360131846,1746562239504,-400.0,0.00019178,2]
[360131848,1746562239513,-400.0,0.00019178,2]
[360131850,1746562239523,-400.0,0.00019178,2]
[360131852,1746562239532,-400.0,0.00019178,2]
[360131854,1746562239542,-400.0,0.00019178,2]
[360131856,1746562239551,-400.0,0.00019178,2]
[360131858,1746562239561,-400.0,0.00019178,2]
[360131860,1746562239571,-400.0,0.00019178,2]
[360131862,1746562239581,-400.0,0.00019178,2]
[360131864,1746562239590,-400.0,0.00019178,2]
[360131866,1746562239600,-913.04,0.00019178,2]
[360131869,1746562239609,-430.15802287,0.00019178,2]
[360131872,1746562239619,-404.70681988,0.00019178,2]
[360131874,1746562239628,-400.0,0.00019178,2]
[360131876,1746562239638,-400.0,0.00019178,2]
[360131878,1746562239648,-400.0,0.00019178,2]
[360131881,1746562239667,-311.2897186,0.00019178,2]
[360131884,1746562239683,-304.64050112,0.00019178,2]
[360131886,1746562239696,-501.96523987,0.00019178,2]
[360131889,1746562239714,-400.0,0.00019178,2]
[360131892,1746562239730,-357.10086959,0.00019178,2]
[360131895,1746562239746,-400.0,0.00019178,2]
[360131897,1746562239762,-400.0,0.00019178,2]
[360131900,1746562239776,-400.0,0.00019178,2]
[360131902,1746562239789,-400.0,0.00019178,2]
[360131905,1746562239805,-503.80666547,0.00019178,2]
[360131907,1746562239819,-401.54,0.00019178,2]
[360131910,1746562239831,-400.0,0.00019178,2]
[360131912,1746562239845,-400.0,0.00019178,2]
[360131915,1746562239859,-400.0,0.00019178,2]
[360131917,1746562239875,-400.0,0.00019178,2]
[360131920,1746562239893,-500.0,0.00019178,2]
[360131923,1746562239910,-500.0,0.00019178,2]
[360131925,1746562239923,-400.0,0.00019178,2]
[360131928,1746562239934,-317.15975652,0.00019178,2]
[360131930,1746562239948,-400.0,0.00019178,2]
[360131933,1746562239965,-407.5,0.00019178,2]
[360131935,1746562239977,-400.0,0.00019178,2]
[360131938,1746562239990,-400.0,0.00019178,2]
[360131940,1746562240005,-400.0,0.00019178,2]
[360131942,1746562240019,-400.0,0.00019178,2]
[360131945,1746562240031,-400.0,0.00019178,2]
[360131947,1746562240043,-400.0,0.00019178,2]
[360131949,1746562240056,-510.75279138,0.00019178,2]
[360131952,1746562240068,-400.0,0.00019178,2]
[360131954,1746562240085,-424.17,0.00019178,2]
[360131957,1746562240098,-400.0,0.00019178,2]
[360131959,1746562240111,-400.0,0.00019178,2]
[360131962,1746562240125,-400.0,0.00019178,2]
[360131964,1746562240139,-400.0,0.00019178,2]
[360131966,1746562240152,-400.0,0.00019178,2]
[360131969,1746562240165,-400.0,0.00019178,2]
[360131971,1746562240177,-422.54,0.00019178,2]
[360131973,1746562240191,-200.0,0.00019178,2]
[360131976,1746562240204,-500.0,0.00019178,2]
[360131978,1746562240216,-400.0,0.00019178,2]
[360131981,1746562240229,-400.0,0.00019178,2]
[360131983,1746562240242,-1269.6,0.00019178,2]
[360131985,1746562240254,-400.0,0.00019178,2]
[360131988,1746562240267,-400.0,0.00019178,2]
[360131990,1746562240279,-400.0,0.00019178,2]
[360131992,1746562240291,-424.31932119,0.00019178,2]
[360131994,1746562240303,-400.0,0.00019178,2]
[360131997,1746562240317,-400.0,0.00019178,2]
[360131999,1746562240329,-580.78,0.00019178,2]
[360132001,1746562240341,-400.0,0.00019178,2]
[360132004,1746562240355,-449.04,0.00019178,2]
[360132006,1746562240368,-400.0,0.00019178,2]
[360132008,1746562240380,-358.0,0.00019178,2]
[360132010,1746562240392,-1000.0,0.00019178,2]
[360132013,1746562240406,-400.0,0.00019178,2]
[360132015,1746562240419,-400.0,0.00019178,2]
[360132018,1746562240432,-400.0,0.00019178,2]
[360132020,1746562240445,-400.0,0.00019178,2]
[360132022,1746562240457,-400.0,0.00019178,2]
[360132025,1746562240471,-539.9,0.00019178,2]
[360132027,1746562240483,-400.0,0.00019178,2]
[360132029,1746562240495,-400.0,0.00019178,2]
[360132032,1746562240509,-529.31,0.00019178,2]
[360132034,1746562240522,-441.35,0.00019178,2]
[360132036,1746562240534,-400.0,0.00019178,2]
[360132038,1746562240547,-405.99455463,0.00019178,2]
[360132041,1746562240559,-970.37,0.00019178,2]
[360132043,1746562240572,-528.76593274,0.00019178,2]